[Event "Olomouc Chess Summer-GM 2022"]
[Site "Olomouc"]
[Date "2022.08.16"]
[Round "5.2"]
[White "Winkelman, Albert"]
[Black "Krejci, Jan"]
[Result "0-1"]
[ECO "B46"]
[WhiteElo "2278"]
[BlackElo "2511"]
[Annotator "TA"]
[PlyCount "142"]
[EventDate "2022.08.10"]
[EventCountry "CZE"]
[SourceTitle "playchess.com"]
[Source "ChessBase"]
[SourceQuality "1"]
[TimeControl "40/5400+30:1800+30"]

{[%evp 17,142,39,50,36,56,10,11,26,28,0,3,-19,-7,-72,-68,-61,-24,-138,-20,-20,-15,-10,-10,-23,-20,-29,-22,-24,-22,-26,-17,-22,-11,-34,-18,-20,25,-22,0,-10,0,-39,-37,-34,-16,-43,-46,-71,-74,-69,-70,-73,-68,-107,-107,-107,-107,-107,-107,-183,-179,-180,-175,-176,-170,-626,-611,-747,-713,-29980,-29977,-29976,-29959,-5593,-1018,-1018,0,-782,-775,-743,-748,-636,-636,-990,-990,-992,-990,-996,-992,-1139,-1398,-985,-996,-1016,-1016,-1016,-1016,-1013,-1015,-1004,-996,-996,-754,-985,-703,-5090,-654,-548,-545,-584,-197,-416,-424,-541,-541,-719,-545,-1576,-538,-1557,-1044,-1003,-538,-1415,-538,-29981,-29982]} 1. e4 {[%emt 0:00:04]} c5 {[%emt 0:00:03]} 2. Nf3 {[%emt 0:00:09]} e6 {[%emt 0:00:03]} 3. d4 {[%emt 0:00:24]} cxd4 {[%emt 0:00:03]} 4. Nxd4 {[%emt 0:00:11]} Nc6 {[%emt 0:00:04]} 5. Nc3 {[%emt 0:00:43]} a6 {[%emt 0:00:01]} 6. Be3 {[%emt 0:00:35]} Nf6 {[%emt 0:00:05]} 7. Bd3 {[%emt 0:13:02]} Qc7 {[%emt 0:03:13]} 8. O-O {[%emt 0:05:12]} Nxd4 {[%emt 0:00:25]} 9. Bxd4 {[%emt 0:00:17]} Bc5 {[%emt 0:00:02]} 10. Be2 {[%emt 0:12:29] Strongly threatening e5. B48: Sicilian: Taimanov: 5 Nc3 Qc7 6 Be3 a6 without Be2.} d6 {[%emt 0:05:11] Inhibits e5. 10...e5 is vanishing.} 11. Qd2 {[%emt 0:05:23] is the legacy move (11.Bxf6).} (11. Bxf6 $14 {is superior.} gxf6 12. Qd2) 11... Bxd4 $11 {[%emt 0:03:10]} 12. Qxd4 {[%emt 0:00:10] The position is equal.} e5 {[%emt 0:00:40]} 13. Qe3 {[%emt 0:00:46]} Be6 {[%emt 0:01:46] [#]} 14. Qg3 $146 {[%emt 0:03:46]} ({Predecessor:} 14. a4 O-O 15. Rfd1 Rfd8 16. Rd2 Qa5 17. Rad1 Qb4 18. f4 exf4 19. Qd4 Qxb2 20. Rb1 {0-1 (42) Reinaldo Castineira,R (2416)-Moreno Carnero,J (2515) Barcelona 2000}) 14... O-O {[%emt 0:01:51]} 15. f4 {[%emt 0:00:58]} (15. Rfd1 $11 {keeps the balance.}) 15... exf4 $17 {[%emt 0:04:11]} 16. Rxf4 {[%emt 0:00:21]} Nd7 {[%emt 0:04:37]} (16... d5 $5 17. exd5 Nxd5 18. Nxd5 Bxd5 $15) 17. Rd1 {[%emt 0:09:34]} (17. Qe3 $11) 17... Ne5 {[%emt 0:00:33]} (17... Qb6+ $17 18. Rf2 Qxb2 19. Rxd6 Rac8) 18. Qe3 {[%emt 0:01:41]} b5 {[%emt 0:03:55]} 19. Qd4 {[%emt 0:01:34]} Rfd8 {[%emt 0:00:30][%cal Ob5b4]} 20. Rd2 {[%emt 0:01:02]} Rac8 {[%emt 0:02:55][%cal Ba8c8,Bc8c5,Bc5c6,Bc6b6][%mdl 32]} 21. Rf1 {[%emt 0:02:54]} Qb7 {[%emt 0:02:38]} 22. a3 {[%emt 0:01:58]} h6 {[%emt 0:06:53]} 23. Rfd1 {[%emt 0:01:38]} Rd7 {[%emt 0:01:59]} 24. h3 {[%emt 0:06:41]} Rc5 {[%emt 0:02:15]} 25. Kh1 {[%emt 0:03:42]} Qc7 {[%emt 0:04:03]} 26. Qg1 {[%emt 0:00:50]} Qb8 {[%emt 0:04:00] [#]} 27. Qe3 {[%emt 0:01:13]} (27. Rxd6 $142 $1 Rxd6 28. Qxc5 Rxd1+ 29. Nxd1) 27... Qc7 {[%emt 0:03:05]} 28. Rd4 {[%emt 0:00:46]} Rc6 {[%emt 0:03:48]} 29. a4 {[%emt 0:04:25]} bxa4 {[%emt 0:03:05]} 30. Rxa4 {[%emt 0:00:09]} Qb7 {[%emt 0:00:03]} (30... Qb8 $5 {[%cal Rb8b2]}) 31. Qc1 {[%emt 0:00:10]} Rb6 {[%emt 0:01:29]} 32. b3 {[%emt 0:16:58]} Rc7 {[%emt 0:00:59]} 33. Nd5 {[%emt 0:00:18]} Bxd5 {[%emt 0:00:08]} 34. exd5 {[%emt 0:00:06] White is now going downhill.} Rxb3 $1 {[%emt 0:09:31]} 35. cxb3 {[%emt 0:05:04]} Rxc1 {[%emt 0:00:06]} 36. Rxc1 {[%emt 0:00:06]} Qxb3 {[%emt 0:00:10]} 37. Rxa6 {[%emt 0:00:21]} Qb2 {[%emt 0:01:30]} 38. Rc8+ {[%emt 0:00:40]} (38. Ra8+ $17 Kh7 39. Re1) 38... Kh7 $19 {[%emt 0:00:01]} 39. Bg4 {[%emt 0:01:14]} Qb1+ {[%emt 0:04:56]} 40. Kh2 {[%emt 0:00:07]} Qe4 {[%emt 0:00:11]} 41. Rd8 $2 {[%emt 0:31:06]} (41. Rc7) 41... f5 {[%emt 0:35:46]} 42. Bxf5+ {[%emt 0:00:00]} Qxf5 {[%emt 0:00:00]} 43. Rdxd6 {[%emt 0:00:00]} Qf4+ {[%emt 0:00:00]} 44. Kg1 {[%emt 0:00:00]} Nd3 {[%emt 0:00:00]} 45. Rg6 {[%emt 0:00:00]} Qf2+ {[%emt 0:00:00]} (45... Qc1+ $142 46. Kh2 Nf4) 46. Kh2 {[%emt 0:00:00]} Qf4+ $2 {[%emt 0:00:00]} (46... Nf4 $19 47. Rg4 h5) 47. Rg3 {[%emt 0:00:00][%mdl 8192]} (47. Kg1 $11 Qc1+ 48. Kh2) 47... Ne5 {[%emt 0:00:00]} 48. Ra7 {[%emt 0:00:00]} Ng6 {[%emt 0:00:00]} 49. Raa3 {[%emt 0:00:00]} h5 {[%emt 0:00:00][%cal Bh6h5,Bh5h4][%mdl 32]} 50. Kh1 {[%emt 0:00:00]} h4 {[%emt 0:00:00]} 51. Rgf3 {[%emt 0:00:00]} Qd2 {[%emt 0:00:00]} 52. Ra1 {[%emt 0:01:13]} Nf4 {[%emt 0:00:00][%csl Gf4][%cal Rd2g2]} 53. Rg1 {[%emt 0:00:16]} g5 {[%emt 0:00:00]} 54. d6 {[%emt 0:01:29]} Qxd6 {[%emt 0:00:00]} 55. Rgf1 {[%emt 0:00:38]} Nh5 {[%emt 0:00:00] aiming for ...Ng3+.} 56. Rb1 {[%emt 0:01:00]} Kg6 {[%emt 0:00:00]} 57. Rfb3 {[%emt 0:00:18]} Ng3+ {[%emt 0:00:00]} 58. Kg1 {[%emt 0:00:15]} Kh5 {[%emt 0:00:00]} 59. Rb7 {[%emt 0:01:11]} Qd4+ {[%emt 0:00:00]} 60. Kh2 {[%emt 0:00:11]} Qf4 {[%emt 0:00:00]} 61. Rh7+ {[%emt 0:02:17]} Kg6 {[%emt 0:00:00]} 62. Rhb7 {[%emt 0:00:10] Black must now prevent R1b6+.} Ne4+ {[%emt 0:00:00]} ({Not} 62... Nf1+ 63. Kg1 Qc4 64. R7b6+ (64. Rxf1 g4 $11) 64... Kh5 65. R6b4 $14) 63. Kh1 {[%emt 0:01:12]} Nf6 $2 {[%emt 0:00:01]} (63... Nf2+ 64. Kg1 Ne4) 64. R7b6 $2 {[%emt 0:00:44]} (64. R7b4 {was the only defense.} Ne4 65. Rb7) 64... Kh5 {[%emt 0:00:14]} 65. Rb7 {[%emt 0:01:15]} Nd5 {[%emt 0:01:43] Threatens to win with ...Qe4.} 66. Rh7+ {[%emt 0:00:22]} Kg6 {[%emt 0:00:01]} 67. Rhb7 {[%emt 0:00:07]} Qe4 {[%emt 0:00:14]} 68. Kg1 {[%emt 0:02:14]} Nf4 {[%emt 0:02:03][%csl Gf4][%cal Re4g2]} 69. R1b2 {[%emt 0:00:42]} Kh5 {[%emt 0:01:31]} 70. R7b3 {[%emt 0:00:28] [#]} Ne2+ {[%emt 0:01:50]} (70... Nxg2 $142 $1 {[%mdl 512] ( -> ...Nf4)} 71. Rb4 {[#]} (71. Rxg2 Qd4+) 71... Qf3 $1 72. Rxg2 Qd1+ 73. Kf2 Qd2+ 74. Kg1 Qe1+ 75. Kh2 Qxb4) 71. Kf2 {[%emt 0:00:30]} Nc1 {[%emt 0:00:40] Weighted Error Value: White=0.74/Black=0.25 (precise)} 0-1

[Event "Olomouc Chess Summer-GM 2022"]
[Site "Olomouc"]
[Date "2022.08.16"]
[Round "5.3"]
[White "Pap, Gyula"]
[Black "Sorm, Daniel"]
[Result "1/2-1/2"]
[ECO "B46"]
[WhiteElo "2481"]
[BlackElo "2308"]
[Annotator "TA"]
[PlyCount "23"]
[EventDate "2022.08.10"]
[EventCountry "CZE"]
[SourceTitle "playchess.com"]
[Source "ChessBase"]
[SourceQuality "1"]
[TimeControl "40/5400+30:1800+30"]

{[%evp 11,23,35,32,29,25,16,42,11,18,0,24,0,12,0]} 1. e4 {[%emt 0:00:26]} c5 {[%emt 0:00:19]} 2. Nf3 {[%emt 0:00:09]} Nc6 {[%emt 0:00:29]} 3. d4 {[%emt 0:01:04]} cxd4 {[%emt 0:00:07]} 4. Nxd4 {[%emt 0:00:04]} e6 {[%emt 0:04:33]} 5. Nc3 {[%emt 0:03:39]} a6 {[%emt 0:00:14]} 6. Nxc6 {[%emt 0:01:48]} bxc6 {[%emt 0:00:09]} 7. Qd3 {[%emt 0:06:21] B46: Sicilian: Taimanov: 5 Nc3 a6.} d5 {[%emt 0:01:30]} 8. Qg3 {[%emt 0:01:09]} Nf6 {[%emt 0:07:17]} 9. Bd3 {[%emt 0:01:11]} (9. Be2 $5 {[%cal Re1g1]}) 9... Nh5 {[%emt 0:03:19]} 10. Qf3 {[%emt 0:02:53]} Nf6 {[%emt 0:00:14] [#]} 11. Qg3 $146 {[%emt 0:02:55]} ({Predecessor:} 11. O-O Be7 12. Qg3 Nh5 13. Qf3 Nf6 14. e5 Nd7 15. Qg3 g6 16. Bh6 Rb8 17. b3 Rb4 18. f4 Bf8 19. Bxf8 Kxf8 {0-1 (36) Hovhannisyan,R (2625)-Movsesian,S (2633) Chess.com INT 2018}) 11... Nh5 {[%emt 0:00:10]} 12. Qf3 {[%emt 0:00:06] A rather calm draw.  Weighted Error Value: White=0.14 (very precise) /Black=0.08 (flawless)} 1/2-1/2

[Event "Olomouc Chess Summer-GM 2022"]
[Site "Olomouc"]
[Date "2022.08.16"]
[Round "5.4"]
[White "Stalmach, Richard"]
[Black "Svanda, Ondrej"]
[Result "1-0"]
[ECO "E11"]
[WhiteElo "2363"]
[BlackElo "2363"]
[Annotator "TA"]
[PlyCount "61"]
[EventDate "2022.08.10"]
[EventCountry "CZE"]
[SourceTitle "playchess.com"]
[Source "ChessBase"]
[SourceQuality "1"]
[TimeControl "40/5400+30:1800+30"]

{[%evp 10,61,26,4,27,31,39,31,38,25,58,43,35,24,38,28,38,25,37,30,22,5,36,43,154,133,179,187,206,201,202,206,207,178,162,154,252,249,221,236,253,220,392,232,341,250,247,259,401,399,851,837,29980,967]} 1. d4 {[%emt 0:00:02]} Nf6 {[%emt 0:00:07]} 2. c4 {[%emt 0:00:06]} e6 {[%emt 0:00:04]} 3. Nf3 {[%emt 0:00:11]} Bb4+ {[%emt 0:00:06]} 4. Nbd2 {[%emt 0:00:06]} O-O {[%emt 0:00:09]} 5. a3 {[%emt 0:00:05]} Be7 {[%emt 0:00:07]} 6. e4 {[%emt 0:00:46]} d6 {[%emt 0:00:18][%cal Oe6e5] E11: Bogo-Indian.} (6... d5 $5 {[%cal Rd5e4]}) 7. Be2 {[%emt 0:00:53]} Nbd7 {[%emt 0:00:17] 7...Nfd7 is more fashionable.} 8. O-O {[%emt 0:00:38]} e5 {[%emt 0:00:41] White is slightly better.} 9. Qc2 {[%emt 0:00:39] 9.b4 is not played anymore.} a5 {[%emt 0:01:06]} 10. b3 {[%emt 0:00:51]} exd4 {[%emt 0:00:44]} 11. Nxd4 {[%emt 0:00:11]} Re8 {[%emt 0:00:04]} 12. Bb2 {[%emt 0:02:06]} Bf8 {[%emt 0:00:23]} 13. Rfe1 {[%emt 0:01:12]} g6 {[%emt 0:03:28]} 14. Bf1 {[%emt 0:04:13]} Bg7 {[%emt 0:04:09]} 15. h3 {[%emt 0:07:07] [#]} h5 $146 {[%emt 0:03:16]} ({Predecessor:} 15... Nc5 16. Rad1 Nfd7 17. g3 Nf8 18. Bg2 Bd7 19. f4 g5 20. f5 h5 21. g4 hxg4 22. hxg4 {1-0 (46) Berza,S (2319)-Klim,A (2305) ICCF email 2017}) 16. Rad1 {[%emt 0:00:55]} h4 {[%emt 0:03:53] [#] White now steadily converts the win.} (16... Nc5 $14) 17. N2f3 $1 $16 {[%emt 0:16:52] White is more active.} Nh5 {[%emt 0:10:47]} (17... c6 $16) 18. Nb5 $18 {[%emt 0:01:48]} Ne5 {[%emt 0:05:10]} 19. Bxe5 {[%emt 0:05:44]} Bxe5 {[%emt 0:07:18] [#]} 20. c5 $1 {[%emt 0:00:59]} Qe7 {[%emt 0:04:46]} 21. cxd6 {[%emt 0:08:20]} Bxd6 {[%emt 0:00:02]} 22. e5 {[%emt 0:06:08]} ({Don't take} 22. Nxd6 cxd6 23. Bb5 Rd8 $16) 22... Bc5 {[%emt 0:08:10]} (22... Bxa3 $16 23. Qxc7 (23. Nxc7 Bf5 $16) 23... Be6) 23. e6 {[%emt 0:01:02]} Bxe6 {[%emt 0:14:53] [#]} 24. Rxe6 $1 {[%emt 0:00:56][%mdl 512]} Qxe6 {[%emt 0:01:01]} 25. Qxc5 {[%emt 0:00:23]} Qxb3 $2 {[%emt 0:00:04]} (25... Qc6 26. Qxc6 bxc6) 26. Rd3 {[%emt 0:02:54]} (26. Qc1 $142) 26... Qb1 {[%emt 0:00:03]} (26... Qb2 {was worth a try.} 27. Nxc7 Rac8 28. Qxa5 Re4) 27. Qc4 {[%emt 0:00:57] Hoping for Nc3.} (27. Nxc7 Rac8 $18) 27... Ra6 {[%emt 0:02:04]} 28. Rd7 {[%emt 0:06:45][%mdl 1024] White has strong compensation.} (28. Nxc7 Rc6 29. Qxc6 bxc6 $16) 28... Rf6 {[%emt 0:00:31]} (28... Qf5 {keeps fighting.} 29. Rxc7 (29. Qxc7 Rc6 $14) 29... Rb6) 29. Nxc7 {[%emt 0:01:12] Dancing on a razor blade.} Re4 {[%emt 0:04:02]} (29... Rf4 30. Qd5 Rf8) 30. Rd8+ {[%emt 0:00:24]} Kh7 {[%emt 0:00:03] [#]} 31. Qxe4 $3 {[%emt 0:00:40][%mdl 512] Weighted Error Value: White=0.13 (very precise) /Black=0.69} 1-0

[Event "Olomouc Chess Summer-GM 2022"]
[Site "Olomouc"]
[Date "2022.08.16"]
[Round "5.5"]
[White "Lutsko, Artem"]
[Black "Baum, Jonasz"]
[Result "0-1"]
[ECO "E49"]
[WhiteElo "2392"]
[BlackElo "2410"]
[Annotator "TA"]
[PlyCount "58"]
[EventDate "2022.08.10"]
[EventCountry "CZE"]
[SourceTitle "playchess.com"]
[Source "ChessBase"]
[SourceQuality "1"]
[TimeControl "40/5400+30:1800+30"]

{[%evp 23,58,-4,4,9,8,8,16,16,10,16,8,3,38,0,0,0,0,0,0,0,0,0,0,0,34,6,4,-80,-86,-81,-85,-29983,-29984,-29984,-29985,-29987,-29987]} 1. c4 e6 2. Nc3 d5 3. d4 Bb4 4. a3 Bxc3+ 5. bxc3 Nf6 6. e3 O-O 7. Bd3 dxc4 8. Bxc4 c5 9. Ne2 Qc7 10. Bd3 Nc6 11. O-O e5 12. Qc2 Rd8 13. f4 {E49: Nimzo-Indian: Rubinstein: 5 Bd3 d5 6 a3 Bxc3+ 7 bxc3.} exd4 14. cxd4 {[#]} Qe7 $146 {[%cal Rc5d4]} ({Predecessor:} 14... Qd6 15. Bb2 Bg4 16. Rad1 cxd4 17. e4 Rac8 18. Qd2 Qe7 19. h3 Bxe2 20. Qxe2 Nd7 {0-1 (39) Kulago,A (2146)-Pacher,M (2255) Tatranske Zruby 2007}) 15. dxc5 {The position is equal.} Rd5 16. e4 Rxc5 17. Qb1 Rh5 18. Ng3 Rxh2 19. Kxh2 Ng4+ 20. Kg1 {Black must now prevent Be2.} Qh4 {[%csl Gg4][%cal Rh4h2]} 21. Rf3 Nd4 {Pair of Knights!} 22. Re3 {aiming for Qb2.} Qh2+ 23. Kf1 {[%cal Ob1b2]} Be6 {[%cal Bc8e6,Be6h3,Bh3g4][%mdl 32] [#] Threatens to win with ...h5.} 24. Qb2 $1 Rd8 {[#] Strongly threatening ...h5.} 25. Be2 $1 Nxe2 $17 {The board is on fire. 0x0.001eba878d10dp-1022s more active pieces.} 26. Qxe2 {Hoping for Rd3.} Nxe3+ 27. Qxe3 $4 {[%mdl 8192]} (27. Bxe3 $17 Qxg3 28. Kg1) 27... Rd1+ {Black mates.} 28. Kf2 {[#]} Bh3 $1 {[%csl Gh3][%cal Rh2g2]} ({Inferior is} 28... Bg4 29. Nf1 Qh1 30. Bb2 Qxf1+ 31. Kg3 $17) 29. Ke2 Bg4+ {Weighted Error Value: White=0.51/Black=0.06 (flawless)} 0-1

[Event "Olomouc Chess Summer-GM 2022"]
[Site "Olomouc"]
[Date "2022.08.17"]
[Round "6.1"]
[White "Mirzoev, Azer"]
[Black "Baum, Jonasz"]
[Result "1-0"]
[ECO "A46"]
[WhiteElo "2424"]
[BlackElo "2410"]
[Annotator "TA"]
[PlyCount "113"]
[EventDate "2022.08.10"]
[EventCountry "CZE"]
[SourceTitle "playchess.com"]
[Source "ChessBase"]
[SourceQuality "1"]
[TimeControl "40/5400+30:1800+30"]

{[%evp 21,113,0,0,0,0,-6,0,-9,-9,-20,0,0,47,28,36,-23,0,0,0,0,0,32,5,8,71,64,25,70,75,74,87,76,103,99,285,290,349,344,363,340,322,337,388,387,355,292,280,288,308,292,286,284,350,331,411,274,271,267,283,251,321,318,327,302,305,290,306,302,316,316,329,316,439,439,430,422,472,465,452,445,483,474,784,775,863,839,1027,951,1046,1020,2233,1900,1810,1416]} 1. d4 {[%emt 0:00:19]} Nf6 {[%emt 0:00:06]} 2. Nf3 {[%emt 0:00:09]} d5 {[%emt 0:00:09]} 3. c4 {[%emt 0:01:00]} e6 {[%emt 0:00:06]} 4. e3 {[%emt 0:00:47]} Be7 {[%emt 0:00:37]} 5. b3 {[%emt 0:00:56]} O-O {[%emt 0:02:37]} 6. Bb2 {[%emt 0:00:05]} c5 {[%emt 0:02:05]} 7. Nbd2 {[%emt 0:00:26]} cxd4 {[%emt 0:01:23]} 8. exd4 {[%emt 0:00:26]} Nc6 {[%emt 0:00:25]} 9. Bd3 {[%emt 0:00:19]} b6 {[%emt 0:02:09]} 10. O-O {[%emt 0:02:08]} Bb7 {[%emt 0:00:11]} 11. Qe2 {[%emt 0:00:11]} Rc8 {[%emt 0:02:54]} 12. Rad1 {[%emt 0:00:12] E14: Queen's Indian: Classical Variation (4 e3).} Qc7 {[%emt 0:02:37]} 13. Rfe1 {[%emt 0:01:29]} Rfd8 {[%emt 0:02:51]} 14. h3 {[%emt 0:00:34] [#] The position is equal.} Nh5 $146 {[%emt 0:15:13]} ({Predecessor:} 14... Qf4 15. g3 Qh6 16. h4 Qh5 17. Bb1 h6 18. a3 Bf8 19. Qd3 Ne7 20. c5 bxc5 21. dxc5 {1-0 (33) Anton Guijarro,D (2675)-Le,Q (2709) Chess.com INT 2020}) 15. Bb1 {[%emt 0:03:10]} Nf4 {[%emt 0:02:58]} 16. Qe3 {[%emt 0:00:32]} Bf6 {[%emt 0:05:50]} (16... g6 $11) 17. g3 $14 {[%emt 0:23:15]} Ng6 {[%emt 0:06:19]} ({Weaker is} 17... Nxh3+ 18. Kh2 $16) 18. h4 {[%emt 0:18:20]} (18. cxd5 $14 Rxd5 19. h4) 18... Nge7 {[%emt 0:02:55]} (18... Nce7 $11) 19. g4 {[%emt 0:06:09] Black must now prevent g5.} ({But not} 19. Qd3 Nf5 20. cxd5 Rxd5 $17) 19... Ng6 {[%emt 0:05:35]} 20. cxd5 {[%emt 0:07:39]} Rxd5 {[%emt 0:01:44]} 21. h5 {[%emt 0:01:48]} Nf4 {[%emt 0:10:31]} 22. Ne4 {[%emt 0:00:56] Against Bg5. Strongly threatening Bc1.} Nh3+ {[%emt 0:00:30] [#]} (22... Be7 $11 {keeps the balance.}) 23. Kg2 $1 $16 {[%emt 0:02:22]} Nf4+ {[%emt 0:00:10]} 24. Kf1 {[%emt 0:06:47]} Be7 {[%emt 0:04:02] [#]} 25. Bc1 $1 $36 {[%emt 0:03:53][%mdl 2048] White has strong initiative.} Ba6+ {[%emt 0:07:52]} 26. Kg1 {[%emt 0:00:06]} e5 {[%emt 0:00:03] aiming for ...Nxd4.} 27. Nc3 {[%emt 0:06:29][%csl LRd5,LRe5] Qe4 is the strong threat.} Nxd4 $2 {[%emt 0:10:52] Loses the game.} 28. Nxd4 $18 {[%emt 0:01:49] The board is on fire.} Rxd4 {[%emt 0:00:59]} 29. Rxd4 {[%emt 0:00:37]} exd4 {[%emt 0:00:18]} 30. Qxe7 {[%emt 0:02:34]} Qxe7 {[%emt 0:07:10]} 31. Rxe7 {[%emt 0:00:05]} Ne6 {[%emt 0:00:13]} 32. Rxa7 {[%emt 0:01:48]} Bb5 {[%emt 0:02:13]} 33. Nxb5 {[%emt 0:03:38]} Rxc1+ {[%emt 0:00:02]} 34. Kg2 {[%emt 0:00:09]} Rxb1 {[%emt 0:00:04][%mdl 4096] Endgame KRN-KRN} 35. Ra8+ {[%emt 0:00:04]} Nf8 {[%emt 0:00:03]} 36. Nxd4 {[%emt 0:00:04]} Rd1 {[%emt 0:01:21]} 37. Nc6 {[%emt 0:01:02] Ne7+ would kill now.} f5 {[%emt 0:01:26]} 38. Ne7+ {[%emt 0:00:07]} Kf7 {[%emt 0:00:03]} 39. Nxf5 {[%emt 0:00:05]} Nd7 {[%emt 0:00:25]} 40. Ra7 {[%emt 0:00:31]} Kf6 {[%emt 0:00:30]} 41. Ne3 {[%emt 0:30:09]} Rd4 {[%emt 0:30:05]} 42. Kg3 {[%emt 0:00:28]} g6 {[%emt 0:00:29]} 43. hxg6 {[%emt 0:00:22]} hxg6 {[%emt 0:00:02]} 44. Rc7 {[%emt 0:00:17]} Rd6 {[%emt 0:01:25]} 45. f3 {[%emt 0:01:40]} Rd3 {[%emt 0:02:06]} 46. Kf2 {[%emt 0:03:04]} Kg5 {[%emt 0:00:41]} 47. Ke2 {[%emt 0:00:32] White is clearly winning.} Rd6 {[%emt 0:00:08]} 48. Nc4 {[%emt 0:02:12] Prevents Ne5.} Rd5 {[%emt 0:00:56]} 49. Rc6 {[%emt 0:02:19]} b5 {[%emt 0:00:05]} 50. Nd2 {[%emt 0:00:00]} Ne5 {[%emt 0:00:00]} 51. Ne4+ {[%emt 0:00:00]} Kh4 {[%emt 0:00:00]} (51... Kh6 $142) 52. Rc8 {[%emt 0:00:00][%cal Rc8h8]} Nf7 {[%emt 0:00:00] Against Rh8+} 53. Rg8 {[%emt 0:00:00]} Kh3 {[%emt 0:00:00]} 54. Rxg6 {[%emt 0:00:00] And now Kf2 would win.} Kg2 {[%emt 0:00:00]} 55. f4 {[%emt 0:00:00][%cal Bf3f4,Bf4f5][%mdl 32]} b4 {[%emt 0:00:00]} 56. Rf6 {[%emt 0:00:00]} Nh8 {[%emt 0:00:00]} 57. f5 {[%emt 0:00:00] Weighted Error Value: White=0.10 (very precise) /Black=0.29 (precise)} 1-0

[Event "Olomouc Chess Summer-GM 2022"]
[Site "Olomouc"]
[Date "2022.08.17"]
[Round "6.2"]
[White "Svanda, Ondrej"]
[Black "Lutsko, Artem"]
[Result "1/2-1/2"]
[ECO "B51"]
[WhiteElo "2363"]
[BlackElo "2392"]
[Annotator "TA"]
[PlyCount "51"]
[EventDate "2022.08.10"]
[EventCountry "CZE"]
[SourceTitle "playchess.com"]
[Source "ChessBase"]
[SourceQuality "1"]
[TimeControl "40/5400+30:1800+30"]

{[%evp 9,51,8,26,30,29,29,31,31,35,28,27,38,39,18,38,-5,0,0,0,0,-3,-5,1,0,0,-4,0,0,0,0,0,0,17,0,0,0,0,0,0,0,0,0,0,0]} 1. e4 {[%emt 0:00:02]} c5 {[%emt 0:00:04]} 2. Nf3 {[%emt 0:00:04]} d6 {[%emt 0:00:03]} 3. Bb5+ {[%emt 0:00:06]} Nd7 {[%emt 0:00:38]} 4. a4 {[%emt 0:00:23]} Ngf6 {[%emt 0:00:02]} 5. Nc3 {[%emt 0:00:05]} g6 {[%emt 0:00:15]} 6. a5 {[%emt 0:00:08] B51: Sicilian: Moscow Variation (3 Bb5+) without 3...Bd7.} Bg7 {[%emt 0:00:23]} 7. O-O {[%emt 0:00:13]} a6 {[%emt 0:00:04]} 8. Be2 {[%emt 0:00:37] White is slightly better.} O-O {[%emt 0:00:05]} 9. d3 {[%emt 0:00:28]} b5 {[%emt 0:01:13]} 10. axb6 $1 {[%emt 0:00:06]} a5 {[%emt 0:00:12]} 11. Qd2 {[%emt 0:05:08]} Nxb6 {[%emt 0:05:56] [#]} 12. b3 $146 {[%emt 0:00:51]} ({Predecessor:} 12. Qf4 a4 13. Qh4 h5 14. Ra3 Re8 15. h3 Bd7 16. Ng5 Qc7 17. f4 c4 18. d4 {1-0 (37) So,W (2773)-Vokhidov,S (2552) Chess.com INT 2022}) 12... Bd7 {[%emt 0:19:14] The position is equal.} 13. Bb2 {[%emt 0:00:47]} Qc7 {[%emt 0:02:38]} 14. Ra2 {[%emt 0:06:27]} a4 {[%emt 0:00:51]} 15. bxa4 {[%emt 0:01:18]} Nxa4 {[%emt 0:00:02]} 16. Rfa1 {[%emt 0:10:22][%cal Rc3a4]} Nb6 {[%emt 0:00:03]} 17. Qc1 {[%emt 0:00:26]} Qb7 {[%emt 0:12:22]} 18. e5 {[%emt 0:11:00]} Rxa2 {[%emt 0:02:38]} 19. Rxa2 {[%emt 0:00:01]} Nfd5 {[%emt 0:00:14]} 20. Nxd5 {[%emt 0:04:08]} Qxd5 {[%emt 0:03:37]} 21. Qa1 {[%emt 0:19:21]} Ra8 {[%emt 0:10:08]} (21... Rb8 {seems wilder.} 22. Ra7 Ra8 23. exd6 Bxb2 24. Rxa8+ Nxa8 25. Qxb2 Qxd6 26. Nd2 Nb6) 22. Rxa8+ {[%emt 0:02:27]} Qxa8 {[%emt 0:01:36]} 23. Qxa8+ {[%emt 0:00:03]} Nxa8 {[%emt 0:00:08]} 24. d4 {[%emt 0:07:36]} cxd4 {[%emt 0:14:38]} 25. exd6 {[%emt 0:00:00]} exd6 {[%emt 0:10:46]} 26. Bxd4 {[%emt 0:00:02] Weighted Error Value: White=0.04 (flawless) /Black=0.03 (flawless)} 1/2-1/2